[Event "27th OIBM 2024"]
[Site "Gmund am Tegernsee"]
[Date "2024.10.26"]
[Round "1.31"]
[White "Krahe, Frank"]
[Black "Gschiel, Alexander"]
[Result "0-1"]
[ECO "C56"]
[WhiteElo "2062"]
[BlackElo "2326"]
[Annotator "RC"]
[PlyCount "107"]
[EventDate "2024.09.16"]
[EventType "swiss"]
[EventCountry "GER"]
[SourceTitle "playchess.com"]
[Source "ChessBase"]
[SourceQuality "1"]
[TimeControl "40/5400+30:1800+30"]

1. e4 {[%emt 0:00:08]} e5 {[%emt 0:00:08]} 2. Nf3 {[%emt 0:00:11]} Nc6 {[%emt 0:00:09]} 3. Bc4 {[%emt 0:00:19]} Nf6 {[%emt 0:00:17]} 4. d4 {[%emt 0:01:14]} exd4 {[%emt 0:00:47]} 5. O-O {[%emt 0:00:19]} Nxe4 {[%emt 0:01:15]} 6. Re1 {[%emt 0:00:13]} d5 {[%emt 0:00:08]} 7. Bxd5 {[%emt 0:00:15]} Qxd5 {[%emt 0:00:08]} 8. Nc3 {[%emt 0:00:09]} Qd7 {[%emt 0:01:20]} 9. Nxe4 {[%emt 0:00:56]} Be7 {[%emt 0:00:09]} 10. Bg5 {[%emt 0:00:28]} O-O {[%emt 0:00:20]} 11. Bxe7 {[%emt 0:00:09]} Qxe7 {[%emt 0:00:07]} 12. Nxd4 {[%emt 0:00:28]} Bd7 {[%emt 0:00:29]} 13. Nb5 {[%emt 0:03:54]} Rad8 {[%emt 0:06:46]} 14. Qh5 {[%emt 0:04:55]} Ne5 {[%emt 0:12:10]} 15. Ng5 {[%emt 0:16:39]} h6 {[%emt 0:04:42]} 16. Nf3 {[%emt 0:03:24]} Nxf3+ {[%emt 0:00:22]} 17. Qxf3 {[%emt 0:00:26]} Qc5 {[%emt 0:05:42]} 18. Nc3 {[%emt 0:00:44]} Bc6 {[%emt 0:00:16]} 19. Qf4 {[%emt 0:11:48]} Rd4 {[%emt 0:09:28]} 20. Qe5 {[%emt 0:09:06]} Qb6 {[%emt 0:04:07]} 21. b3 {[%emt 0:04:03]} Rd2 {[%emt 0:04:48]} 22. Re2 {[%emt 0:02:52]} Rxe2 {[%emt 0:02:59]} 23. Qxe2 {[%emt 0:00:32]} Re8 {[%emt 0:01:07]} 24. Qd2 {[%emt 0:00:59]} Qb4 {[%emt 0:44:46]} 25. Re1 {[%emt 0:04:31]} Rxe1+ 26. Qxe1 Qg4 {[%emt 0:00:00]} 27. Qf1 {[%emt 0:00:54]} Qg6 {[%emt 0:00:00]} 28. Ne2 {[%emt 0:05:37]} Qxc2 {[%emt 0:00:00]} 29. Nd4 {[%emt 0:00:09]} Qxa2 {[%emt 0:00:00]} 30. Nxc6 {[%emt 0:00:06]} bxc6 {[%emt 0:00:00]} 31. Qd1 {[%emt 0:00:08]} c5 {[%emt 0:00:00]} 32. h4 {[%emt 0:01:31]} c4 {[%emt 0:00:00]} 33. bxc4 {[%emt 0:29:53]} Qxc4 {[%emt 0:04:30]} 34. h5 {[%emt 0:00:00]} a5 {[%emt 0:00:00]} 35. Qd7 {[%emt 0:01:00]} Qc1+ {[%emt 0:00:00]} 36. Kh2 {[%emt 0:00:00]} Qc5 {[%emt 0:00:00]} 37. Qe8+ {[%emt 0:00:00]} Qf8 {[%emt 0:00:00]} 38. Qb5 {[%emt 0:00:00]} Qa8 {[%emt 0:02:30]} 39. Qa4 {[%emt 0:00:00]} Qd5 {[%emt 0:00:00]} 40. g4 {[%emt 0:00:00]} Qf3 {[%emt 0:00:00]} 41. Qxa5 {[%emt 0:11:30]} Qxg4 {[%emt 0:31:30]} 42. Qxc7 {[%emt 0:00:15]} Qxh5+ {[%emt 0:00:00]} 43. Kg2 {[%emt 0:00:24]} Qg4+ {[%emt 0:00:00]} 44. Kh1 Qf3+ {[%emt 0:00:00]} 45. Kg1 {[%emt 0:02:41]} h5 {[%emt 0:00:00]} 46. Qe7 {[%emt 0:02:01]} Kh7 {[%emt 0:00:00]} 47. Qc7 {[%emt 0:03:59]} h4 {[%emt 0:00:00]} 48. Qe7 {[%emt 0:01:06]} f5 {[%emt 0:00:00]} 49. Qb4 {[%emt 0:00:42]} g5 {[%emt 0:00:00]} 50. Qb1 {[%emt 0:01:31]} h3 {[%emt 0:00:00]} 51. Qf1 {[%emt 0:00:18]} Kh6 {[%emt 0:00:00]} 52. Kh2 {[%emt 0:00:41]} g4 {[%emt 0:00:00]} 53. Qg1 {[%emt 0:03:00]} Kh5 {[%emt 0:00:00]} 54. Qf1 {[%emt 0:00:56]} 0-1

[Event "27th OIBM 2024"]
[Site "Gmund am Tegernsee"]
[Date "2024.10.26"]
[Round "1.32"]
[White "Farokhi, Keyvan"]
[Black "Li, Yunqi"]
[Result "1-0"]
[ECO "E44"]
[WhiteElo "2320"]
[BlackElo "2062"]
[Annotator "RC"]
[PlyCount "65"]
[EventDate "2024.09.16"]
[EventType "swiss"]
[EventCountry "GER"]
[SourceTitle "playchess.com"]
[Source "ChessBase"]
[SourceQuality "1"]
[TimeControl "40/5400+30:1800+30"]

1. d4 {[%emt 0:00:05]} Nf6 {[%emt 0:00:06]} 2. c4 {[%emt 0:00:06]} e6 {[%emt 0:00:04]} 3. Nc3 {[%emt 0:00:05]} Bb4 {[%emt 0:00:11]} 4. e3 {[%emt 0:00:09]} b6 {[%emt 0:00:18]} 5. Nge2 {[%emt 0:01:28]} Bb7 {[%emt 0:00:21]} 6. a3 {[%emt 0:01:01]} Bxc3+ {[%emt 0:00:06]} 7. Nxc3 {[%emt 0:00:06]} Ne4 {[%emt 0:01:21]} 8. Nxe4 {[%emt 0:13:23]} Bxe4 {[%emt 0:00:13]} 9. f3 {[%emt 0:06:27]} Bb7 {[%emt 0:00:47]} 10. Qc2 {[%emt 0:00:41]} Qh4+ {[%emt 0:03:08]} 11. Qf2 {[%emt 0:00:53]} Qxf2+ {[%emt 0:01:47]} 12. Kxf2 {[%emt 0:00:03]} d6 {[%emt 0:00:30]} 13. Bd3 {[%emt 0:03:02]} Nd7 {[%emt 0:01:22]} 14. b3 {[%emt 0:03:45]} O-O {[%emt 0:01:29]} 15. Bb2 {[%emt 0:00:19]} Rfe8 {[%emt 0:03:35]} 16. Rad1 {[%emt 0:04:15]} e5 {[%emt 0:07:24]} 17. Bf5 {[%emt 0:09:25]} Nf6 {[%emt 0:01:12]} 18. dxe5 {[%emt 0:00:23]} dxe5 {[%emt 0:00:12]} 19. Rd2 {[%emt 0:00:15]} Bc8 {[%emt 0:03:17]} 20. Bc2 {[%emt 0:01:54]} h6 {[%emt 0:12:31]} 21. Rhd1 {[%emt 0:01:27]} Bb7 {[%emt 0:01:05]} 22. b4 {[%emt 0:10:23]} Bc6 {[%emt 0:01:35]} 23. g4 {[%emt 0:05:10]} g5 {[%emt 0:04:43]} 24. a4 {[%emt 0:06:45]} Kf8 {[%emt 0:07:24]} 25. a5 {[%emt 0:06:39]} bxa5 {[%emt 0:02:40]} 26. b5 {[%emt 0:00:54]} Bb7 {[%emt 0:02:25]} 27. c5 {[%emt 0:00:05]} Rab8 {[%emt 0:03:36]} 28. Ba4 {[%emt 0:01:55]} h5 {[%emt 0:11:03]} 29. h3 {[%emt 0:03:44]} hxg4 {[%emt 0:00:42]} 30. hxg4 {[%emt 0:00:02]} Re7 {[%emt 0:00:42]} 31. c6 {[%emt 0:00:46]} Bc8 {[%emt 0:00:08]} 32. Ba3 {[%emt 0:00:06]} e4 {[%emt 0:00:23]} 33. Rd8+ {[%emt 0:00:58]} 1-0

[Event "27th OIBM 2024"]
[Site "Gmund am Tegernsee"]
[Date "2024.10.26"]
[Round "1.33"]
[White "Pasti, Zsombor"]
[Black "Ernst, Robert"]
[Result "0-1"]
[ECO "D39"]
[WhiteElo "2062"]
[BlackElo "2319"]
[Annotator "RC"]
[PlyCount "48"]
[EventDate "2024.09.16"]
[EventType "swiss"]
[EventCountry "GER"]
[SourceTitle "playchess.com"]
[Source "ChessBase"]
[SourceQuality "1"]
[TimeControl "40/5400+30:1800+30"]

1. d4 {[%emt 0:00:24]} d5 {[%emt 0:00:14]} 2. c4 {[%emt 0:00:02]} e6 {[%emt 0:00:12]} 3. Nc3 {[%emt 0:00:04]} Bb4 {[%emt 0:00:10]} 4. Nf3 {[%emt 0:00:25]} Nf6 {[%emt 0:00:09]} 5. Bg5 {[%emt 0:00:07]} dxc4 {[%emt 0:00:08]} 6. e4 {[%emt 0:04:29]} b5 {[%emt 0:00:10]} 7. Qc2 {[%emt 0:04:14]} h6 {[%emt 0:10:13]} 8. Bh4 {[%emt 0:07:07]} g5 {[%emt 0:03:21]} 9. Nxg5 {[%emt 0:02:09]} hxg5 {[%emt 0:00:15]} 10. Bxg5 {[%emt 0:00:06]} Rg8 {[%emt 0:36:20]} 11. h4 {[%emt 0:00:58]} c5 {[%emt 0:00:39]} 12. O-O-O {[%emt 0:01:30]} Bxc3 {[%emt 0:00:09]} 13. bxc3 {[%emt 0:08:43]} Qc7 {[%emt 0:00:12]} 14. dxc5 {[%emt 0:14:04]} Nbd7 {[%emt 0:05:01]} 15. e5 {[%emt 0:06:18]} Nd5 {[%emt 0:01:11]} 16. Be2 {[%emt 0:05:18]} Bb7 {[%emt 0:04:09]} 17. Rhe1 {[%emt 0:12:42]} Rxg5 {[%emt 0:03:41]} 18. hxg5 {[%emt 0:00:10]} Qxe5 {[%emt 0:00:46]} 19. g6 {[%emt 0:01:12]} O-O-O {[%emt 0:00:57]} 20. Kb2 {[%emt 0:08:56]} Qf6 {[%emt 0:02:32]} 21. Bf3 {[%emt 0:07:00]} fxg6 {[%emt 0:04:38]} 22. Bxd5 {[%emt 0:02:05]} Bxd5 {[%emt 0:00:19]} 23. a4 {[%emt 0:00:28]} b4 {[%emt 0:02:26]} 24. c6 {[%emt 0:00:32]} Nc5 {[%emt 0:00:17]} 0-1

[Event "27th OIBM 2024"]
[Site "Gmund am Tegernsee"]
[Date "2024.10.26"]
[Round "1.34"]
[White "Goh, Zi Han"]
[Black "Proschmann, Tino"]
[Result "1-0"]
[ECO "D73"]
[WhiteElo "2319"]
[BlackElo "2061"]
[Annotator "RC"]
[PlyCount "53"]
[EventDate "2024.09.16"]
[EventType "swiss"]
[EventCountry "GER"]
[SourceTitle "playchess.com"]
[Source "ChessBase"]
[SourceQuality "1"]
[TimeControl "40/5400+30:1800+30"]

1. d4 {[%emt 0:01:10]} d5 {[%emt 0:00:12]} 2. c4 {[%emt 0:00:23]} c6 {[%emt 0:00:07]} 3. Nf3 {[%emt 0:00:18]} Nf6 {[%emt 0:01:11]} 4. g3 {[%emt 0:00:30]} g6 {[%emt 0:02:06]} 5. Bg2 {[%emt 0:00:28]} dxc4 {[%emt 0:00:22]} 6. a4 {[%emt 0:02:36]} Bg7 {[%emt 0:00:41]} 7. O-O {[%emt 0:01:38]} O-O {[%emt 0:03:18]} 8. Na3 {[%emt 0:00:57]} Be6 {[%emt 0:05:22]} 9. Ng5 {[%emt 0:05:28]} Qd7 {[%emt 0:06:54]} 10. Nxe6 {[%emt 0:02:01]} Qxe6 {[%emt 0:00:11]} 11. Qc2 {[%emt 0:01:10]} Rd8 {[%emt 0:03:08]} 12. e3 {[%emt 0:01:42]} Na6 {[%emt 0:05:38]} 13. Nxc4 {[%emt 0:08:19]} Nb4 {[%emt 0:11:08]} 14. Qb3 {[%emt 0:04:29]} Nbd5 {[%emt 0:00:33]} 15. Bd2 {[%emt 0:04:01]} Nb6 {[%emt 0:08:54]} 16. Rfc1 {[%emt 0:04:31]} c5 {[%emt 0:03:06]} 17. a5 {[%emt 0:08:08]} Nxc4 {[%emt 0:02:06]} 18. Qxc4 {[%emt 0:00:20]} cxd4 {[%emt 0:11:47]} 19. a6 {[%emt 0:13:40]} dxe3 {[%emt 0:04:56]} 20. Qxe6 {[%emt 0:02:00]} exf2+ {[%emt 0:00:39]} 21. Kf1 {[%emt 0:01:44]} fxe6 {[%emt 0:00:35]} 22. axb7 {[%emt 0:00:16]} Rab8 {[%emt 0:14:00]} 23. Ba5 {[%emt 0:02:00]} Rf8 {[%emt 0:06:04]} 24. Bc7 {[%emt 0:00:31]} Rbe8 {[%emt 0:01:35]} 25. Bc6 {[%emt 0:00:46]} Rd8 {[%emt 0:04:55]} 26. Bxd8 {[%emt 0:00:08]} Rxd8 {[%emt 0:00:07]} 27. Rxa7 {[%emt 0:00:46]} 1-0

[Event "27th OIBM 2024"]
[Site "Gmund am Tegernsee"]
[Date "2024.10.26"]
[Round "1.35"]
[White "Danninger, Hugo Kian"]
[Black "Forchert, Martin"]
[Result "1/2-1/2"]
[ECO "D04"]
[WhiteElo "2057"]
[BlackElo "2316"]
[Annotator "RC"]
[PlyCount "74"]
[EventDate "2024.09.16"]
[EventType "swiss"]
[EventCountry "GER"]
[SourceTitle "playchess.com"]
[Source "ChessBase"]
[SourceQuality "1"]
[TimeControl "40/5400+30:1800+30"]

1. d4 {[%emt 0:00:01]} d5 {[%emt 0:03:49]} 2. Nf3 {[%emt 0:00:09]} Nf6 {[%emt 0:00:08]} 3. e3 {[%emt 0:00:05]} g6 {[%emt 0:00:13]} 4. Be2 {[%emt 0:00:11]} Bg7 {[%emt 0:00:07]} 5. O-O {[%emt 0:00:06]} O-O {[%emt 0:00:03]} 6. c4 {[%emt 0:00:35]} dxc4 {[%emt 0:01:03]} 7. Bxc4 {[%emt 0:00:06]} b6 {[%emt 0:08:53]} 8. Nc3 {[%emt 0:04:44]} Bb7 {[%emt 0:00:05]} 9. Re1 {[%emt 0:04:39]} Ne4 {[%emt 0:05:52]} 10. Bd3 {[%emt 0:17:29]} Nxc3 {[%emt 0:04:05]} 11. bxc3 {[%emt 0:00:07]} c5 {[%emt 0:00:18]} 12. Ba3 {[%emt 0:00:19]} Nd7 {[%emt 0:01:14]} 13. Rc1 {[%emt 0:00:20]} e5 {[%emt 0:10:54]} 14. Bb5 {[%emt 0:12:52]} Rc8 {[%emt 0:22:43]} 15. Bxd7 {[%emt 0:22:41]} Bxf3 {[%emt 0:14:21]} 16. Qxf3 {[%emt 0:02:10]} Qxd7 {[%emt 0:00:05]} 17. Qd1 {[%emt 0:04:44]} Rfd8 {[%emt 0:00:40]} 18. dxc5 {[%emt 0:01:01]} Bf8 {[%emt 0:00:36]} 19. Qb3 {[%emt 0:11:09]} Bxc5 {[%emt 0:00:24]} 20. Red1 {[%emt 0:00:50]} Qe7 {[%emt 0:00:38]} 21. Bb4 {[%emt 0:03:38]} Qc7 {[%emt 0:07:20]} 22. h3 {[%emt 0:01:14]} Bxb4 {[%emt 0:01:04]} 23. Qxb4 {[%emt 0:00:08]} Kg7 {[%emt 0:01:35]} 24. Qa4 {[%emt 0:01:23]} Qe7 {[%emt 0:02:10]} 25. Rxd8 {[%emt 0:01:01]} Rxd8 {[%emt 0:00:09]} 26. Rd1 {[%emt 0:00:32]} Rxd1+ {[%emt 0:04:50]} 27. Qxd1 {[%emt 0:00:18]} Qc5 {[%emt 0:00:01]} 28. Qb3 {[%emt 0:02:14]} b5 {[%emt 0:00:37]} 29. Qb4 {[%emt 0:03:45]} Qxb4 {[%emt 0:02:41]} 30. cxb4 {[%emt 0:00:05]} e4 {[%emt 0:00:13]} 31. Kf1 {[%emt 0:04:12]} h5 {[%emt 0:00:48]} 32. g3 {[%emt 0:00:51]} g5 {[%emt 0:01:59]} 33. Ke2 {[%emt 0:00:19]} Kf6 {[%emt 0:00:10]} 34. Kd2 {[%emt 0:01:02]} Ke5 {[%emt 0:03:21]} 35. Kc3 {[%emt 0:00:50]} f6 {[%emt 0:00:35]} 36. Kb3 {[%emt 0:00:15]} Kd5 {[%emt 0:00:20]} 37. Kc3 {[%emt 0:00:16]} Ke5 {[%emt 0:04:56]} 1/2-1/2

[Event "27th OIBM 2024"]
[Site "Gmund am Tegernsee"]
[Date "2024.10.26"]
[Round "1.36"]
[White "Kozlovic, Jernej"]
[Black "Dietze, Frank"]
[Result "1-0"]
[ECO "B31"]
[WhiteElo "2313"]
[BlackElo "2101"]
[Annotator "RC"]
[PlyCount "49"]
[EventDate "2024.09.16"]
[EventType "swiss"]
[EventCountry "GER"]
[SourceTitle "playchess.com"]
[Source "ChessBase"]
[SourceQuality "1"]
[TimeControl "40/5400+30:1800+30"]

1. e4 {[%emt 0:00:03]} c5 {[%emt 0:00:10]} 2. Nf3 {[%emt 0:00:37]} Nc6 {[%emt 0:00:32]} 3. Bb5 {[%emt 0:00:10]} g6 {[%emt 0:00:14]} 4. O-O {[%emt 0:00:13]} Bg7 {[%emt 0:00:30]} 5. Re1 {[%emt 0:00:10]} e5 {[%emt 0:01:18]} 6. Bxc6 {[%emt 0:00:10]} dxc6 {[%emt 0:01:19]} 7. d3 {[%emt 0:00:42]} Ne7 {[%emt 0:10:11]} 8. a3 {[%emt 0:02:40]} a5 {[%emt 0:06:12]} 9. Be3 {[%emt 0:00:49]} b6 {[%emt 0:02:52]} 10. Nbd2 {[%emt 0:01:25]} Ba6 {[%emt 0:01:17]} 11. Qb1 {[%emt 0:08:04]} O-O {[%emt 0:14:13]} 12. b4 {[%emt 0:01:51]} axb4 {[%emt 0:00:19]} 13. axb4 {[%emt 0:00:13]} cxb4 {[%emt 0:00:20]} 14. Qxb4 {[%emt 0:00:20]} c5 {[%emt 0:00:15]} 15. Qb3 {[%emt 0:07:45]} Nc6 {[%emt 0:06:20]} 16. Nc4 {[%emt 0:03:39]} b5 {[%emt 0:04:46]} 17. Na3 {[%emt 0:27:36]} Na5 {[%emt 0:13:53]} 18. Qb2 {[%emt 0:00:23]} b4 {[%emt 0:02:02]} 19. Nb1 {[%emt 0:00:53]} Qc7 {[%emt 0:00:39]} 20. Nbd2 {[%emt 0:00:54]} Rfb8 {[%emt 0:01:45]} 21. Ra4 {[%emt 0:06:53]} Bb5 {[%emt 0:08:40]} 22. Ra2 {[%emt 0:00:35]} b3 {[%emt 0:06:49]} 23. Nxb3 {[%emt 0:01:51]} Bxd3 {[%emt 0:03:09]} 24. cxd3 {[%emt 0:01:24]} Rxb3 {[%emt 0:00:19]} 25. Qxb3 {[%emt 0:00:06]} 1-0

[Event "27th OIBM 2024"]
[Site "Gmund am Tegernsee"]
[Date "2024.10.26"]
[Round "1.37"]
[White "Czap, Bernard"]
[Black "Hrebenshchykova, Yelyzaveta"]
[Result "0-1"]
[ECO "A36"]
[WhiteElo "2056"]
[BlackElo "2311"]
[Annotator "RC"]
[PlyCount "80"]
[EventDate "2024.09.16"]
[EventType "swiss"]
[EventCountry "GER"]
[SourceTitle "playchess.com"]
[Source "ChessBase"]
[SourceQuality "1"]
[TimeControl "40/5400+30:1800+30"]

1. c4 {[%emt 0:00:30]} Nf6 {[%emt 0:07:02]} 2. g3 {[%emt 0:00:09]} g6 {[%emt 0:07:53]} 3. Bg2 {[%emt 0:00:59]} Bg7 {[%emt 0:00:05]} 4. Nc3 {[%emt 0:00:25]} O-O {[%emt 0:00:09]} 5. e4 {[%emt 0:01:45]} c5 {[%emt 0:05:12]} 6. Nge2 {[%emt 0:00:10]} Nc6 {[%emt 0:00:22]} 7. d3 {[%emt 0:00:14]} d6 {[%emt 0:00:52]} 8. a3 {[%emt 0:01:19]} Bd7 {[%emt 0:09:33]} 9. Rb1 {[%emt 0:05:04]} a5 {[%emt 0:00:54]} 10. Be3 {[%emt 0:00:13]} Ng4 {[%emt 0:13:53]} 11. Bg5 {[%emt 0:06:51]} h6 {[%emt 0:06:07]} 12. Bc1 {[%emt 0:18:21]} Nd4 {[%emt 0:00:50]} 13. h3 {[%emt 0:10:19]} Nf6 {[%emt 0:06:53]} 14. Nxd4 {[%emt 0:06:55]} cxd4 {[%emt 0:00:04]} 15. Ne2 {[%emt 0:00:53]} e5 {[%emt 0:01:03]} 16. O-O {[%emt 0:03:24]} Qc8 {[%emt 0:00:31]} 17. Kh2 {[%emt 0:00:28]} b5 {[%emt 0:00:23]} 18. cxb5 {[%emt 0:04:05]} Bxb5 {[%emt 0:00:04]} 19. a4 {[%emt 0:00:25]} Ba6 {[%emt 0:03:24]} 20. b4 {[%emt 0:05:23]} axb4 {[%emt 0:00:37]} 21. Rxb4 {[%emt 0:00:10]} Nd7 {[%emt 0:02:19]} 22. Ba3 {[%emt 0:04:50]} Nc5 {[%emt 0:03:02]} 23. Nc1 {[%emt 0:00:48]} Qd7 {[%emt 0:11:48]} 24. Rb6 {[%emt 0:05:44]} Rfb8 {[%emt 0:06:56]} 25. Bxc5 {[%emt 0:01:06]} dxc5 {[%emt 0:00:03]} 26. Rxb8+ {[%emt 0:03:16]} Rxb8 {[%emt 0:00:03]} 27. Qc2 {[%emt 0:00:17]} Bf8 {[%emt 0:00:45]} 28. f4 {[%emt 0:01:05]} exf4 {[%emt 0:00:33]} 29. gxf4 {[%emt 0:01:19]} Rb4 {[%emt 0:03:21]} 30. e5 {[%emt 0:01:53]} c4 {[%emt 0:02:46]} 31. dxc4 {[%emt 0:04:41]} Rxc4 {[%emt 0:00:15]} 32. Qf2 {[%emt 0:00:31]} Rxa4 {[%emt 0:00:18]} 33. Rd1 {[%emt 0:00:19]} d3 {[%emt 0:05:28]} 34. Nb3 {[%emt 0:03:05]} Qb5 {[%emt 0:01:17]} 35. Nd2 {[%emt 0:00:20]} Ra2 {[%emt 0:00:32]} 36. Qg3 {[%emt 0:01:21]} Qa4 {[%emt 0:00:46]} 37. Qf3 {[%emt 0:02:36]} Bb7 {[%emt 0:01:18]} 38. Qxb7 {[%emt 0:01:48]} Qxd1 {[%emt 0:00:03]} 39. Ne4 {[%emt 0:00:18]} Qf1 {[%emt 0:00:25]} 40. Nf6+ {[%emt 0:00:14]} Kh8 {[%emt 0:00:16]} 0-1

[Event "27th OIBM 2024"]
[Site "Gmund am Tegernsee"]
[Date "2024.10.26"]
[Round "1.38"]
[White "Wong, Gengchun"]
[Black "Ercan, Selman"]
[Result "1-0"]
[ECO "B12"]
[WhiteElo "2295"]
[BlackElo "2054"]
[Annotator "RC"]
[PlyCount "75"]
[EventDate "2024.09.16"]
[EventType "swiss"]
[EventCountry "GER"]
[SourceTitle "playchess.com"]
[Source "ChessBase"]
[SourceQuality "1"]
[TimeControl "40/5400+30:1800+30"]

1. e4 {[%emt 0:04:42]} c6 {[%emt 0:00:20]} 2. d4 {[%emt 0:00:07]} d5 {[%emt 0:00:11]} 3. e5 {[%emt 0:00:13]} c5 {[%emt 0:00:27]} 4. dxc5 {[%emt 0:00:23]} e6 {[%emt 0:00:24]} 5. Nf3 {[%emt 0:00:10]} Bxc5 {[%emt 0:00:41]} 6. Bd3 {[%emt 0:00:17]} Ne7 {[%emt 0:02:13]} 7. O-O {[%emt 0:04:00]} Ng6 {[%emt 0:02:01]} 8. a3 {[%emt 0:01:11]} a6 {[%emt 0:12:37]} 9. b4 {[%emt 0:04:41]} Ba7 {[%emt 0:00:45]} 10. Bb2 {[%emt 0:07:53]} Nf4 {[%emt 0:06:39]} 11. Re1 {[%emt 0:07:07]} Nxd3 {[%emt 0:04:30]} 12. Qxd3 {[%emt 0:00:13]} O-O {[%emt 0:00:54]} 13. Nbd2 {[%emt 0:11:21]} Bd7 {[%emt 0:08:52]} 14. c4 {[%emt 0:09:02]} Bc6 {[%emt 0:10:35]} 15. b5 {[%emt 0:12:11]} axb5 {[%emt 0:01:01]} 16. cxb5 {[%emt 0:00:10]} Be8 {[%emt 0:00:52]} 17. a4 {[%emt 0:01:11]} Nd7 {[%emt 0:00:53]} 18. Nb3 {[%emt 0:05:10]} Nc5 {[%emt 0:04:12]} 19. Nxc5 {[%emt 0:00:47]} Bxc5 {[%emt 0:00:10]} 20. Bd4 {[%emt 0:00:59]} Bxd4 {[%emt 0:03:39]} 21. Nxd4 {[%emt 0:01:55]} Bd7 {[%emt 0:00:26]} 22. h3 {[%emt 0:03:42]} f6 {[%emt 0:05:10]} 23. Qe3 {[%emt 0:03:50]} Qb6 {[%emt 0:10:20]} 24. Qd2 {[%emt 0:02:17]} Rac8 {[%emt 0:02:20]} 25. a5 {[%emt 0:01:10]} Qc5 {[%emt 0:01:16]} 26. exf6 {[%emt 0:06:10]} Rxf6 {[%emt 0:00:51]} 27. a6 {[%emt 0:01:44]} bxa6 {[%emt 0:01:04]} 28. bxa6 {[%emt 0:00:12]} Qd6 {[%emt 0:02:00]} 29. a7 {[%emt 0:02:07]} Rff8 {[%emt 0:00:20]} 30. Qe2 {[%emt 0:01:09]} Rfe8 {[%emt 0:02:15]} 31. Ra6 {[%emt 0:02:37]} Qb4 {[%emt 0:01:31]} 32. Nxe6 {[%emt 0:05:40]} Bxe6 {[%emt 0:07:05]} 33. Rxe6 {[%emt 0:00:05]} Rf8 {[%emt 0:00:32]} 34. Re7 {[%emt 0:01:16]} Qf4 {[%emt 0:01:38]} 35. Qe6+ {[%emt 0:00:17]} Kh8 {[%emt 0:00:28]} 36. Qxc8 {[%emt 0:01:14]} Qxf2+ {[%emt 0:01:05]} 37. Kh1 {[%emt 0:00:06]} Rxc8 {[%emt 0:01:40]} 38. Re8+ {[%emt 0:00:00]} 1-0

[Event "27th OIBM 2024"]
[Site "Gmund am Tegernsee"]
[Date "2024.10.26"]
[Round "1.39"]
[White "Jerie, Sven"]
[Black "Chassard, Cedric"]
[Result "1/2-1/2"]
[ECO "B90"]
[WhiteElo "2054"]
[BlackElo "2292"]
[Annotator "RC"]
[PlyCount "86"]
[EventDate "2024.09.16"]
[EventType "swiss"]
[EventCountry "GER"]
[SourceTitle "playchess.com"]
[Source "ChessBase"]
[SourceQuality "1"]
[TimeControl "40/5400+30:1800+30"]

1. e4 {[%emt 0:00:04]} c5 {[%emt 0:00:09]} 2. Nf3 {[%emt 0:00:31]} d6 {[%emt 0:00:10]} 3. d4 {[%emt 0:01:12]} cxd4 {[%emt 0:00:11]} 4. Nxd4 {[%emt 0:00:29]} Nf6 {[%emt 0:00:06]} 5. Nc3 {[%emt 0:00:12]} a6 {[%emt 0:00:10]} 6. Be3 {[%emt 0:00:53]} Ng4 {[%emt 0:00:22]} 7. Bc1 {[%emt 0:02:33]} Nc6 {[%emt 0:02:07]} 8. f3 {[%emt 0:06:25]} Qb6 {[%emt 0:14:26]} 9. Nce2 {[%emt 0:05:19]} e5 {[%emt 0:13:17]} 10. fxg4 {[%emt 0:04:21]} exd4 {[%emt 0:04:26]} 11. Nf4 {[%emt 0:05:08]} Qc5 {[%emt 0:11:15]} 12. Nd5 {[%emt 0:19:39]} Nb4 {[%emt 0:11:48]} 13. Nxb4 {[%emt 0:03:08]} Qxb4+ {[%emt 0:00:04]} 14. Bd2 {[%emt 0:02:31]} Qc5 {[%emt 0:00:22]} 15. Bd3 {[%emt 0:01:20]} Be7 {[%emt 0:00:27]} 16. O-O {[%emt 0:03:53]} O-O {[%emt 0:00:22]} 17. Qf3 {[%emt 0:05:59]} Be6 {[%emt 0:04:53]} 18. b3 {[%emt 0:06:00]} Bg5 {[%emt 0:05:40]} 19. Bf4 {[%emt 0:04:54]} Bxf4 {[%emt 0:02:16]} 20. Qxf4 {[%emt 0:00:03]} h6 {[%emt 0:02:05]} 21. h3 {[%emt 0:05:43]} Rac8 {[%emt 0:00:27]} 22. Rae1 {[%emt 0:01:49]} Qe5 {[%emt 0:00:53]} 23. Qd2 {[%emt 0:02:43]} Rc3 {[%emt 0:01:28]} 24. Rf3 {[%emt 0:02:06]} Rfc8 {[%emt 0:00:42]} 25. Ref1 {[%emt 0:00:38]} R8c7 {[%emt 0:03:46]} 26. Qf2 {[%emt 0:00:58]} a5 {[%emt 0:08:03]} 27. a4 {[%emt 0:02:51]} b6 {[%emt 0:01:34]} 28. Qh4 {[%emt 0:02:31]} Qg5 {[%emt 0:00:36]} 29. Qg3 {[%emt 0:01:04]} R7c6 {[%emt 0:04:37]} 30. Qf2 {[%emt 0:00:42]} Qe5 {[%emt 0:00:48]} 31. Qh4 {[%emt 0:04:22]} Rc8 {[%emt 0:00:05]} 32. Qf2 {[%emt 0:01:22]} Rd8 {[%emt 0:00:41]} 33. Qh4 {[%emt 0:01:17]} Qg5 {[%emt 0:00:44]} 34. Qf2 {[%emt 0:00:12]} Qe5 {[%emt 0:00:56]} 35. Qh4 {[%emt 0:00:11]} Rd7 {[%emt 0:01:25]} 36. Kh1 {[%emt 0:04:29]} d5 {[%emt 0:01:43]} 37. exd5 {[%emt 0:00:36]} Qxd5 {[%emt 0:02:25]} 38. Qf2 {[%emt 0:00:44]} Qg5 {[%emt 0:00:50]} 39. Qe2 {[%emt 0:00:22]} Re7 {[%emt 0:00:26]} 40. Qe4 {[%emt 0:00:17]} Kf8 {[%emt 0:03:07]} 41. Qxd4 {[%emt 0:12:13]} Qc5 {[%emt 0:04:12]} 42. Qe4 {[%emt 0:08:50]} Qg5 {[%emt 0:03:24]} 43. Qd4 {[%emt 0:05:59]} Qc5 {[%emt 0:00:09]} 1/2-1/2